[Event "The Schackveckan 2023: IM-turnering"]
[Site "Goteborgs schackcentrum, Vegagatan 20, Gothenburg, Sweden"]
[Date "2023.08.05"]
[Round "1.5"]
[White "Storme, Isak"]
[Black "Brattgjerd, Isak Vinh"]
[Result "1-0"]
[TimeControl "90 minutes for 40 moves + 30 minutes for the rest of the game + 30 seconds per move from move one."]
[WhiteTitle "IM"]
[WhiteFideId "1728113"]
[BlackFideId "1549880"]
[WhiteElo "2448"]
[BlackElo "2214"]

1. e4 {[%clk 01:30:56]} {[%emt 00:00:03]} c6 {[%clk 01:30:47]} {[%emt
00:00:04]} 2. d4 {[%clk 01:31:16]} {[%emt 00:00:19]} d5 {[%clk 01:31:15]}
{[%emt 00:00:02]} 3. e5 {[%clk 01:31:37]} {[%emt 00:00:09]} c5 {[%clk
01:31:40]} {[%emt 00:00:05]} 4. Nf3 {[%clk 01:32:01]} {[%emt 00:00:06]} cxd4
{[%clk 01:32:06]} {[%emt 00:00:05]} 5. Qxd4 {[%clk 01:32:23]} {[%emt 00:00:07]}
Nc6 {[%clk 01:32:29]} {[%emt 00:00:07]} 6. Qf4 {[%clk 01:32:46]} {[%emt
00:00:07]} e6 {[%clk 01:32:15]} {[%emt 00:00:45]} 7. Nc3 {[%clk 01:32:53]}
{[%emt 00:00:22]} a6 {[%clk 01:19:35]} {[%emt 00:13:11]} 8. Bd3 {[%clk
01:32:26]} {[%emt 00:00:56]} Qc7 {[%clk 01:15:58]} {[%emt 00:04:07]} 9. O-O
{[%clk 01:30:56]} {[%emt 00:01:59]} Nge7 {[%clk 01:15:55]} {[%emt 00:00:34]} 10.
Re1 {[%clk 01:21:40]} {[%emt 00:09:46]} Ng6 {[%clk 01:15:13]} {[%emt 00:01:13]}
11. Qg3 {[%clk 01:22:02]} {[%emt 00:00:08]} b5 {[%clk 01:01:16]} {[%emt
00:14:26]} 12. h4 {[%clk 01:13:45]} {[%emt 00:08:47]} Nb4 {[%clk 00:53:05]}
{[%emt 00:08:40]} 13. h5 {[%clk 01:09:27]} {[%emt 00:04:49]} Nxd3 {[%clk
00:53:19]} {[%emt 00:00:17]} 14. cxd3 {[%clk 01:09:42]} {[%emt 00:00:15]} Ne7
{[%clk 00:53:40]} {[%emt 00:00:08]} 15. Bd2 {[%clk 01:09:06]} {[%emt 00:01:05]}
Bd7 {[%clk 00:48:08]} {[%emt 00:06:02]} 16. Rac1 {[%clk 01:08:16]} {[%emt
00:01:21]} Qb7 {[%clk 00:48:13]} {[%emt 00:00:25]} 17. Ne2 {[%clk 01:04:22]}
{[%emt 00:04:24]} Nc6 {[%clk 00:40:14]} {[%emt 00:08:29]} 18. Ned4 {[%clk
01:02:17]} {[%emt 00:02:35]} Nxd4 {[%clk 00:39:39]} {[%emt 00:01:05]} 19. Nxd4
{[%clk 01:02:40]} {[%emt 00:00:07]} g6 {[%clk 00:39:43]} {[%emt 00:00:26]} 20.
Qf4 {[%clk 00:59:30]} {[%emt 00:03:39]} Be7 {[%clk 00:38:09]} {[%emt 00:02:04]}
21. Ba5 {[%clk 00:57:58]} {[%emt 00:02:03]} Rc8 {[%clk 00:35:29]} {[%emt
00:03:10]} 22. Rxc8+ {[%clk 00:57:57]} {[%emt 00:00:32]} Qxc8 {[%clk 00:35:53]}
{[%emt 00:00:05]} 23. Rc1 {[%clk 00:58:05]} {[%emt 00:00:22]} Qa8 {[%clk
00:35:20]} {[%emt 00:01:04]} 24. Rc7 {[%clk 00:55:27]} {[%emt 00:03:07]} g5
{[%clk 00:33:59]} {[%emt 00:01:50]} 25. Qf3 {[%clk 00:55:04]} {[%emt 00:00:53]}
Rf8 {[%clk 00:33:42]} {[%emt 00:00:48]} 26. b4 {[%clk 00:43:34]} {[%emt
00:12:00]} Qb8 {[%clk 00:31:20]} {[%emt 00:02:52]} 27. Qe3 {[%clk 00:41:35]}
{[%emt 00:02:28]} h6 {[%clk 00:30:18]} {[%emt 00:01:33]} 28. Qc1 {[%clk
00:40:36]} {[%emt 00:01:29]} Bd8 {[%clk 00:21:48]} {[%emt 00:09:00]} 29. Rxd7
{[%clk 00:40:41]} {[%emt 00:00:25]} Kxd7 {[%clk 00:21:11]} {[%emt 00:01:07]} 30.
Qc6+ {[%clk 00:40:55]} {[%emt 00:00:17]} Ke7 {[%clk 00:21:38]} {[%emt
00:00:03]} 31. Qc5+ {[%clk 00:41:16]} {[%emt 00:00:08]} Ke8 {[%clk 00:21:07]}
{[%emt 00:01:01]} 32. Nc6 {[%clk 00:41:36]} {[%emt 00:00:11]} Qb7 {[%clk
00:20:41]} {[%emt 00:00:56]} 33. Bxd8 {[%clk 00:41:36]} {[%emt 00:00:30]} f5
{[%clk 00:20:34]} {[%emt 00:00:36]} 34. exf6 {[%clk 00:41:35]} {[%emt
00:00:31]} Rf7 {[%clk 00:20:56]} {[%emt 00:00:08]} 35. Be7 {[%clk 00:41:33]}
{[%emt 00:00:32]} {This game was played on August 9.} 1-0

[Event "The Schackveckan 2023: IM-turnering"]
[Site "Goteborgs schackcentrum, Vegagatan 20, Gothenburg, Sweden"]
[Date "2023.08.06"]
[Round "2.1"]
[White "Sorensen, Hampus"]
[Black "Berggren Torell, Harald"]
[Result "1-0"]
[TimeControl "90 minutes for 40 moves + 30 minutes for the rest of the game + 30 seconds per move from move one."]
[WhiteTitle "IM"]
[WhiteFideId "8703884"]
[BlackFideId "1714031"]
[WhiteElo "2475"]
[BlackElo "2061"]

1. e4 {[%clk 01:30:52]} {[%emt 00:00:07]} d6 {[%clk 01:25:50]} {[%emt
00:05:10]} 2. d4 {[%clk 01:31:10]} {[%emt 00:00:12]} Nf6 {[%clk 01:26:14]}
{[%emt 00:00:07]} 3. Nc3 {[%clk 01:31:29]} {[%emt 00:00:10]} g6 {[%clk
01:26:36]} {[%emt 00:00:10]} 4. Be3 {[%clk 01:31:38]} {[%emt 00:00:19]} Bg7
{[%clk 01:27:00]} {[%emt 00:00:06]} 5. Qd2 {[%clk 01:30:37]} {[%emt 00:01:31]}
c6 {[%clk 01:27:26]} {[%emt 00:00:05]} 6. f3 {[%clk 01:26:50]} {[%emt
00:04:15]} b5 {[%clk 01:26:38]} {[%emt 00:01:19]} 7. h4 {[%clk 01:22:18]}
{[%emt 00:05:01]} h5 {[%clk 01:25:01]} {[%emt 00:02:08]} 8. Nh3 {[%clk
01:04:54]} {[%emt 00:17:53]} Bxh3 {[%clk 01:25:04]} {[%emt 00:00:27]} 9. Rxh3
{[%clk 01:05:11]} {[%emt 00:00:14]} Nbd7 {[%clk 01:24:25]} {[%emt 00:01:09]} 10.
O-O-O {[%clk 01:04:20]} {[%emt 00:01:21]} Qc7 {[%clk 01:20:53]} {[%emt
00:04:02]} 11. Kb1 {[%clk 00:58:03]} {[%emt 00:06:47]} O-O {[%clk 01:14:16]}
{[%emt 00:07:06]} 12. Qe1 {[%clk 00:50:00]} {[%emt 00:08:33]} b4 {[%clk
01:04:36]} {[%emt 00:10:12]} 13. Ne2 {[%clk 00:46:52]} {[%emt 00:03:36]} c5
{[%clk 01:04:19]} {[%emt 00:00:47]} 14. d5 {[%clk 00:35:08]} {[%emt 00:12:15]}
Rfc8 {[%clk 00:48:25]} {[%emt 00:16:24]} 15. Bc1 {[%clk 00:30:09]} {[%emt
00:05:29]} Nb6 {[%clk 00:43:03]} {[%emt 00:05:52]} 16. g4 {[%clk 00:24:42]}
{[%emt 00:05:56]} Rab8 {[%clk 00:31:28]} {[%emt 00:12:07]} 17. gxh5 {[%clk
00:22:31]} {[%emt 00:02:39]} Nxh5 {[%clk 00:27:58]} {[%emt 00:04:01]} 18. f4
{[%clk 00:20:02]} {[%emt 00:02:59]} Na4 {[%clk 00:23:27]} {[%emt 00:05:01]} 19.
f5 {[%clk 00:15:55]} {[%emt 00:04:37]} Nc3+ {[%clk 00:17:48]} {[%emt 00:06:09]}
20. Nxc3 {[%clk 00:15:05]} {[%emt 00:01:19]} bxc3 {[%clk 00:18:03]} {[%emt
00:00:17]} 21. fxg6 {[%clk 00:14:02]} {[%emt 00:01:32]} Qa5 {[%clk 00:09:38]}
{[%emt 00:08:55]} 22. gxf7+ {[%clk 00:13:28]} {[%emt 00:01:04]} Kf8 {[%clk
00:09:49]} {[%emt 00:00:19]} 23. e5 {[%clk 00:10:07]} {[%emt 00:03:51]} Bxe5
{[%clk 00:09:22]} {[%emt 00:00:57]} 24. Bc4 {[%clk 00:08:34]} {[%emt 00:02:02]}
Qb4 {[%clk 00:03:50]} {[%emt 00:06:03]} 25. Qe4 {[%clk 00:05:31]} {[%emt
00:03:33]} Bg7 {[%clk 00:01:23]} {[%emt 00:02:57]} 26. b3 {[%clk 00:05:02]}
{[%emt 00:00:59]} 1-0

[Event "The Schackveckan 2023: IM-turnering"]
[Site "Goteborgs schackcentrum, Vegagatan 20, Gothenburg, Sweden"]
[Date "2023.08.06"]
[Round "2.2"]
[White "Brattgjerd, Isak Vinh"]
[Black "Tryggestad, Andreas Garberg"]
[Result "1/2-1/2"]
[TimeControl "90 minutes for 40 moves + 30 minutes for the rest of the game + 30 seconds per move from move one."]
[BlackTitle "FM"]
[WhiteFideId "1549880"]
[BlackFideId "1513338"]
[WhiteElo "2214"]
[BlackElo "2233"]

1. e4 {[%clk 01:28:02]} {[%emt 00:02:57]} e5 {[%clk 01:30:45]} {[%emt
00:00:16]} 2. Nf3 {[%clk 01:28:02]} {[%emt 00:00:30]} Nc6 {[%clk 01:31:06]}
{[%emt 00:00:08]} 3. Bb5 {[%clk 01:27:51]} {[%emt 00:00:41]} a6 {[%clk
01:31:30]} {[%emt 00:00:07]} 4. Ba4 {[%clk 01:28:18]} {[%emt 00:00:03]} Nf6
{[%clk 01:31:54]} {[%emt 00:00:06]} 5. O-O {[%clk 01:28:42]} {[%emt 00:00:04]}
Be7 {[%clk 01:31:44]} {[%emt 00:00:40]} 6. Re1 {[%clk 01:28:52]} {[%emt
00:00:21]} b5 {[%clk 01:31:50]} {[%emt 00:00:24]} 7. Bb3 {[%clk 01:29:20]}
{[%emt 00:00:02]} O-O {[%clk 01:28:28]} {[%emt 00:03:51]} 8. a4 {[%clk
01:29:41]} {[%emt 00:00:09]} Bb7 {[%clk 01:28:11]} {[%emt 00:00:47]} 9. d4
{[%clk 01:17:45]} {[%emt 00:12:25]} Nxd4 {[%clk 01:23:24]} {[%emt 00:05:18]} 10.
Bxf7+ {[%clk 01:17:17]} {[%emt 00:00:58]} Rxf7 {[%clk 01:18:28]} {[%emt
00:05:26]} 11. Nxe5 {[%clk 01:17:38]} {[%emt 00:00:09]} Ne6 {[%clk 01:16:14]}
{[%emt 00:02:44]} 12. Nxf7 {[%clk 01:18:00]} {[%emt 00:00:08]} Kxf7 {[%clk
01:16:42]} {[%emt 00:00:02]} 13. Nc3 {[%clk 01:14:45]} {[%emt 00:03:44]} Bb4
{[%clk 01:04:21]} {[%emt 00:12:52]} 14. Bd2 {[%clk 01:10:17]} {[%emt 00:04:57]}
Bxc3 {[%clk 01:02:37]} {[%emt 00:02:15]} 15. Bxc3 {[%clk 01:10:38]} {[%emt
00:00:09]} Nxe4 {[%clk 01:02:50]} {[%emt 00:00:18]} 16. Qf3+ {[%clk 00:57:17]}
{[%emt 00:13:50]} Kg8 {[%clk 01:03:05]} {[%emt 00:00:15]} 17. Rxe4 {[%clk
00:54:54]} {[%emt 00:02:54]} Qg5 {[%clk 00:48:31]} {[%emt 00:15:04]} 18. h4
{[%clk 00:48:30]} {[%emt 00:06:54]} Qc5 {[%clk 00:43:11]} {[%emt 00:05:50]} 19.
b4 {[%clk 00:41:05]} {[%emt 00:07:55]} Bxe4 {[%clk 00:38:50]} {[%emt 00:04:51]}
20. Qxe4 {[%clk 00:40:09]} {[%emt 00:01:24]} Qc6 {[%clk 00:37:33]} {[%emt
00:01:48]} 21. Qxc6 {[%clk 00:40:29]} {[%emt 00:00:10]} dxc6 {[%clk 00:38:02]}
{[%emt 00:00:01]} 22. g3 {[%clk 00:37:39]} {[%emt 00:03:20]} Kf7 {[%clk
00:38:25]} {[%emt 00:00:07]} 23. f4 {[%clk 00:37:05]} {[%emt 00:01:04]} g6
{[%clk 00:34:56]} {[%emt 00:04:00]} 24. Be5 {[%clk 00:33:17]} {[%emt 00:04:17]}
h5 {[%clk 00:19:46]} {[%emt 00:15:41]} 25. axb5 {[%clk 00:22:22]} {[%emt
00:11:25]} cxb5 {[%clk 00:20:13]} {[%emt 00:00:02]} 26. Rf1 {[%clk 00:21:55]}
{[%emt 00:00:56]} Ng7 {[%clk 00:19:27]} {[%emt 00:01:17]} 27. Rd1 {[%clk
00:21:34]} {[%emt 00:00:51]} Nf5 {[%clk 00:19:43]} {[%emt 00:00:14]} 28. Kf2
{[%clk 00:18:20]} {[%emt 00:03:44]} Ke6 {[%clk 00:19:39]} {[%emt 00:00:36]} 29.
c3 {[%clk 00:16:25]} {[%emt 00:02:24]} c6 {[%clk 00:14:27]} {[%emt 00:05:41]}
30. Bc7 {[%clk 00:15:38]} {[%emt 00:01:17]} Rc8 {[%clk 00:12:02]} {[%emt
00:02:55]} 31. Re1+ {[%clk 00:15:03]} {[%emt 00:01:05]} Kd5 {[%clk 00:08:54]}
{[%emt 00:03:38]} 32. Re5+ {[%clk 00:12:56]} {[%emt 00:02:36]} Kc4 {[%clk
00:09:23]} {[%emt 00:00:02]} 33. Rc5+ {[%clk 00:12:23]} {[%emt 00:01:03]} Kb3
{[%clk 00:09:51]} {[%emt 00:00:03]} 34. Be5 {[%clk 00:10:50]} {[%emt 00:02:02]}
Kc2 {[%clk 00:08:13]} {[%emt 00:02:08]} 35. Kf3 {[%clk 00:06:20]} {[%emt
00:04:59]} Rd8 {[%clk 00:04:08]} {[%emt 00:04:36]} 36. Rxc6 {[%clk 00:02:44]}
{[%emt 00:04:06]} Rd3+ {[%clk 00:04:38]} {[%emt 00:00:02]} 37. Kf2 {[%clk
00:02:13]} {[%emt 00:01:00]} Rd2 {[%clk 00:03:36]} {[%emt 00:01:31]} 38. Kf3
{[%clk 00:01:48]} {[%emt 00:00:55]} Rd3+ {[%clk 00:04:04]} {[%emt 00:00:02]} 39.
Kf2 {[%clk 00:02:17]} Rd2 {[%clk 00:04:26]} {[%emt 00:00:09]} 1/2-1/2

[Event "The Schackveckan 2023: IM-turnering"]
[Site "Goteborgs schackcentrum, Vegagatan 20, Gothenburg, Sweden"]
[Date "2023.08.06"]
[Round "2.3"]
[White "Kistrup, Nicolai"]
[Black "Storme, Isak"]
[Result "1-0"]
[TimeControl "90 minutes for 40 moves + 30 minutes for the rest of the game + 30 seconds per move from move one."]
[WhiteTitle "FM"]
[BlackTitle "IM"]
[WhiteFideId "1444816"]
[BlackFideId "1728113"]
[WhiteElo "2339"]
[BlackElo "2448"]

1. d4 {[%clk 01:30:57]} {[%emt 00:00:03]} Nf6 {[%clk 01:30:53]} {[%emt
00:00:07]} 2. c4 {[%clk 01:31:23]} {[%emt 00:00:05]} e6 {[%clk 01:31:19]}
{[%emt 00:00:03]} 3. g3 {[%clk 01:31:44]} {[%emt 00:00:09]} d5 {[%clk
01:31:38]} {[%emt 00:00:11]} 4. Bg2 {[%clk 01:31:49]} {[%emt 00:00:25]} Be7
{[%clk 01:31:57]} {[%emt 00:00:11]} 5. Nf3 {[%clk 01:32:02]} {[%emt 00:00:18]}
O-O {[%clk 01:32:19]} {[%emt 00:00:08]} 6. Nc3 {[%clk 01:28:51]} {[%emt
00:03:42]} dxc4 {[%clk 01:32:25]} {[%emt 00:00:23]} 7. Ne5 {[%clk 01:29:14]}
{[%emt 00:00:06]} c5 {[%clk 01:32:25]} {[%emt 00:00:30]} 8. dxc5 {[%clk
01:28:30]} {[%emt 00:01:15]} Qxd1+ {[%clk 01:32:47]} {[%emt 00:00:08]} 9. Nxd1
{[%clk 01:28:39]} {[%emt 00:00:20]} Bxc5 {[%clk 01:33:04]} {[%emt 00:00:13]} 10.
O-O {[%clk 01:27:16]} {[%emt 00:01:54]} Nc6 {[%clk 01:33:00]} {[%emt 00:00:34]}
11. Nxc4 {[%clk 01:14:40]} {[%emt 00:13:06]} Nd5 {[%clk 01:32:00]} {[%emt
00:01:30]} 12. Bd2 {[%clk 01:09:12]} {[%emt 00:05:57]} Rd8 {[%clk 01:28:07]}
{[%emt 00:04:23]} 13. Rc1 {[%clk 01:07:07]} {[%emt 00:02:35]} b6 {[%clk
01:25:21]} {[%emt 00:03:16]} 14. Nde3 {[%clk 00:52:14]} {[%emt 00:15:24]} Ba6
{[%clk 01:24:25]} {[%emt 00:01:26]} 15. Rfe1 {[%clk 00:48:28]} {[%emt
00:04:16]} Rac8 {[%clk 01:21:28]} {[%emt 00:03:27]} 16. Nxd5 {[%clk 00:39:55]}
{[%emt 00:09:04]} exd5 {[%clk 01:21:50]} {[%emt 00:00:06]} 17. Ne3 {[%clk
00:40:06]} {[%emt 00:00:20]} Nd4 {[%clk 01:18:38]} {[%emt 00:03:41]} 18. Kf1
{[%clk 00:37:22]} {[%emt 00:03:13]} Bb7 {[%clk 00:59:09]} {[%emt 00:20:00]} 19.
b4 {[%clk 00:33:09]} {[%emt 00:04:44]} Bf8 {[%clk 00:59:15]} {[%emt 00:00:22]}
20. Rxc8 {[%clk 00:32:09]} {[%emt 00:01:32]} Rxc8 {[%clk 00:59:12]} {[%emt
00:00:33]} 21. Bxd5 {[%clk 00:25:55]} {[%emt 00:06:44]} Bxd5 {[%clk 00:59:22]}
{[%emt 00:00:21]} 22. Nxd5 {[%clk 00:26:18]} {[%emt 00:00:06]} Rc2 {[%clk
00:59:27]} {[%emt 00:00:24]} 23. Be3 {[%clk 00:18:50]} {[%emt 00:07:58]} Nf5
{[%clk 00:56:08]} {[%emt 00:03:49]} 24. Ra1 {[%clk 00:17:02]} {[%emt 00:02:19]}
Nxe3+ {[%clk 00:55:58]} {[%emt 00:00:40]} 25. Nxe3 {[%clk 00:16:13]} {[%emt
00:01:20]} Rb2 {[%clk 00:54:04]} {[%emt 00:02:23]} 26. a3 {[%clk 00:15:17]}
{[%emt 00:01:26]} Rb3 {[%clk 00:53:41]} {[%emt 00:00:52]} 27. Nf5 {[%clk
00:12:01]} {[%emt 00:03:47]} g6 {[%clk 00:53:06]} {[%emt 00:01:04]} 28. Nd4
{[%clk 00:11:59]} {[%emt 00:00:32]} Rb2 {[%clk 00:53:11]} {[%emt 00:00:25]} 29.
Nc6 {[%clk 00:09:08]} {[%emt 00:03:21]} a6 {[%clk 00:53:29]} {[%emt 00:00:12]}
30. Nb8 {[%clk 00:07:14]} {[%emt 00:02:25]} a5 {[%clk 00:53:51]} {[%emt
00:00:09]} 31. Nd7 {[%clk 00:06:58]} {[%emt 00:00:45]} axb4 {[%clk 00:53:16]}
{[%emt 00:01:05]} 32. axb4 {[%clk 00:07:02]} {[%emt 00:00:27]} Kg7 {[%clk
00:53:14]} {[%emt 00:00:30]} 33. Nxb6 {[%clk 00:06:20]} {[%emt 00:01:13]} Rxb4
{[%clk 00:53:38]} {[%emt 00:00:07]} 34. Nd5 {[%clk 00:06:22]} {[%emt 00:00:27]}
Rd4 {[%clk 00:53:38]} {[%emt 00:00:29]} 35. Nf4 {[%clk 00:05:59]} {[%emt
00:00:54]} Bd6 {[%clk 00:53:31]} {[%emt 00:00:37]} 36. Nd3 {[%clk 00:06:09]}
{[%emt 00:00:20]} h5 {[%clk 00:52:42]} {[%emt 00:01:19]} 37. h3 {[%clk
00:05:21]} {[%emt 00:01:18]} Kf6 {[%clk 00:52:00]} {[%emt 00:01:12]} 38. Kg2
{[%clk 00:05:10]} {[%emt 00:00:40]} Rc4 {[%clk 00:52:14]} {[%emt 00:00:17]} 39.
Ra6 {[%clk 00:04:13]} {[%emt 00:01:27]} Ke7 {[%clk 00:52:17]} {[%emt 00:00:26]}
40. Kf3 {[%clk 00:03:49]} {[%emt 00:00:55]} Rd4 {[%clk 00:52:27]} {[%emt
00:00:19]} 41. Rb6 {[%clk 00:29:29]} {[%emt 00:04:50]} Kd7 {[%clk 01:21:51]}
{[%emt 00:01:06]} 42. Rb3 {[%clk 00:28:30]} {[%emt 00:01:30]} Ra4 {[%clk
01:22:06]} {[%emt 00:00:14]} 43. Nb2 {[%clk 00:26:46]} {[%emt 00:02:15]} Rb4
{[%clk 01:21:37]} {[%emt 00:00:59]} 44. Rxb4 {[%clk 00:26:47]} {[%emt
00:00:29]} Bxb4 {[%clk 01:22:01]} {[%emt 00:00:05]} 45. Ke4 {[%clk 00:17:48]}
{[%emt 00:09:30]} Ke6 {[%clk 01:22:17]} {[%emt 00:00:13]} 46. Nd3 {[%clk
00:18:00]} {[%emt 00:00:18]} Ba5 {[%emt 00:02:18]} 47. Nc5+ {[%clk 00:17:22]}
Kf6 {[%clk 01:21:46]} {[%emt 00:00:20]} 48. Kd5 {[%clk 00:15:12]} {[%emt
00:02:41]} Ke7 {[%clk 01:21:25]} {[%emt 00:00:50]} 49. e4 {[%clk 00:13:45]}
{[%emt 00:01:59]} Be1 {[%clk 01:21:07]} {[%emt 00:00:47]} 50. Nd3 {[%clk
00:14:03]} {[%emt 00:00:12]} Bd2 {[%clk 01:21:25]} {[%emt 00:00:12]} 51. e5
{[%clk 00:11:55]} {[%emt 00:02:37]} Ba5 {[%clk 01:20:51]} {[%emt 00:01:04]} 52.
f4 {[%clk 00:08:13]} {[%emt 00:04:13]} Bd2 {[%clk 01:20:48]} {[%emt 00:00:31]}
53. Ke4 {[%clk 00:07:24]} {[%emt 00:01:21]} Ke6 {[%clk 01:19:45]} {[%emt
00:01:32]} 54. Nc5+ {[%clk 00:06:43]} {[%emt 00:01:11]} Ke7 {[%clk 01:20:05]}
{[%emt 00:00:10]} 55. f5 {[%clk 00:05:57]} {[%emt 00:01:17]} gxf5+ {[%clk
01:12:39]} {[%emt 00:07:55]} 56. Kxf5 {[%clk 00:06:21]} {[%emt 00:00:07]} Kf8
{[%clk 01:12:47]} {[%emt 00:00:22]} 57. Nd7+ {[%clk 00:03:50]} {[%emt
00:03:00]} Kg7 {[%clk 01:12:04]} {[%emt 00:01:14]} 58. Nf6 {[%clk 00:04:15]}
{[%emt 00:00:05]} h4 {[%clk 01:10:51]} {[%emt 00:01:43]} 59. g4 {[%clk
00:04:24]} {[%emt 00:00:21]} Ba5 {[%clk 01:10:13]} {[%emt 00:01:08]} 60. Ne4
{[%clk 00:03:19]} {[%emt 00:01:35]} Bd8 {[%clk 01:10:12]} {[%emt 00:00:31]} 61.
g5 {[%clk 00:01:27]} {[%emt 00:02:22]} Be7 {[%clk 01:10:01]} {[%emt 00:00:40]}
62. Nd2 {[%clk 00:01:42]} {[%emt 00:00:15]} Bc5 {[%clk 01:10:02]} {[%emt
00:00:30]} 63. Nf3 {[%clk 00:01:16]} {[%emt 00:00:56]} Bf2 {[%clk 01:10:27]}
{[%emt 00:00:05]} 64. Nd2 {[%clk 00:01:05]} {[%emt 00:00:42]} Bc5 {[%clk
01:10:42]} {[%emt 00:00:14]} 65. Nc4 {[%clk 00:01:15]} {[%emt 00:00:21]} Be7
{[%clk 01:10:27]} {[%emt 00:00:45]} 66. Nb2 {[%clk 00:01:13]} {[%emt 00:00:31]}
Bd8 {[%clk 01:10:22]} {[%emt 00:00:36]} 67. Nd3 {[%clk 00:01:38]} {[%emt
00:00:04]} Bc7 {[%clk 01:09:18]} {[%emt 00:01:33]} 68. Nf4 {[%clk 00:01:57]}
{[%emt 00:00:11]} Bb6 {[%clk 01:08:52]} {[%emt 00:00:56]} 69. e6 {[%clk
00:01:10]} {[%emt 00:01:17]} fxe6+ {[%clk 01:08:54]} {[%emt 00:00:29]} 70.
Nxe6+ {[%clk 00:01:35]} {[%emt 00:00:06]} Kf7 {[%clk 01:08:45]} {[%emt
00:00:37]} 71. Nf4 {[%clk 00:01:56]} {[%emt 00:00:09]} Bf2 {[%clk 01:07:08]}
{[%emt 00:02:08]} 72. Ng2 {[%clk 00:02:21]} {[%emt 00:00:05]} Kg7 {[%clk
01:07:15]} {[%emt 00:00:23]} 73. Kg4 {[%clk 00:02:44]} {[%emt 00:00:06]} Bb6
{[%clk 01:07:32]} {[%emt 00:00:14]} 74. Nxh4 {[%clk 00:03:06]} {[%emt
00:00:07]} Ba5 {[%clk 01:07:56]} {[%emt 00:00:07]} 75. Kf5 {[%clk 00:03:11]}
{[%emt 00:00:25]} Bc3 {[%clk 01:08:20]} {[%emt 00:00:06]} 76. Nf3 {[%clk
00:03:27]} {[%emt 00:00:14]} Bb2 {[%clk 01:08:23]} {[%emt 00:00:27]} 77. Nh4
{[%clk 00:02:55]} {[%emt 00:01:03]} Bc3 {[%clk 01:08:46]} {[%emt 00:00:06]} 78.
Ng2 {[%clk 00:03:19]} {[%emt 00:00:06]} Bb2 {[%clk 01:09:11]} {[%emt 00:00:05]}
79. Nf4 {[%clk 00:03:44]} {[%emt 00:00:05]} Bc3 {[%clk 01:09:36]} {[%emt
00:00:05]} 80. Ne6+ {[%clk 00:03:34]} {[%emt 00:00:41]} Kf7 {[%clk 01:09:56]}
{[%emt 00:00:09]} 81. h4 {[%clk 00:03:57]} {[%emt 00:00:07]} Bb2 {[%clk
01:10:10]} {[%emt 00:00:15]} 82. h5 {[%clk 00:04:15]} {[%emt 00:00:12]} Bc1
{[%clk 01:10:30]} {[%emt 00:00:11]} 83. h6 {[%clk 00:02:24]} {[%emt 00:02:21]}
Kg8 {[%clk 01:10:55]} {[%emt 00:00:04]} 84. Kg6 {[%clk 00:02:35]} {[%emt
00:00:19]} 1-0